bitfinex/quotes_ETHUSD_20250930
["timestamp","ask_amount","ask_price","bid_price","bid_amount"]
[1759259895068,6.1819931,4119.0,4118.9,0.002]
[1759259895241,5.7159931,4119.0,4118.9,0.002]
[1759259895443,4.94937373,4119.0,4118.9,0.002]
[1759259895945,5.71609918,4119.0,4118.9,0.002]
[1759259896386,5.19237373,4119.0,4118.9,0.002]
[1759259898290,4.94937373,4119.0,4118.9,0.002]
[1759259901306,5.17477373,4119.0,4118.9,0.002]
[1759259902305,4.94937373,4119.0,4118.9,0.002]
[1759259904384,10.55620668,4119.0,4118.9,0.002]
[1759259904689,10.78160668,4119.0,4118.9,0.002]
[1759259905012,10.55620668,4119.0,4118.9,0.002]
[1759259905395,10.78160668,4119.0,4118.9,0.002]
[1759259906291,10.55620668,4119.0,4118.9,0.4594]
[1759259906797,4.94937373,4119.0,4118.9,0.4594]
[1759259907109,4.94937373,4119.0,4118.9,0.6017]
[1759259907786,4.94937373,4119.0,4118.9,0.002]
[1759259907787,10.55620668,4119.0,4118.9,0.002]
[1759259910414,10.78160668,4119.0,4118.9,0.002]
[1759259910920,10.55620668,4119.0,4118.9,0.002]
[1759259911153,2.42777373,4119.0,4118.9,0.6017]
[1759259911426,4.82777373,4119.0,4118.9,0.6017]
[1759259912922,2.42773222,4119.1,4118.9,0.6017]
[1759259913218,2.42777373,4119.0,4118.9,0.6017]
[1759259913720,2.42777373,4119.0,4118.9,0.4594]
[1759259914690,2.42777373,4119.0,4118.9,3.2354]
[1759259915728,2.42777373,4119.0,4118.9,2.778]
[1759259915935,2.42777373,4119.0,4118.9,0.002]
[1759259916237,2.65317373,4119.0,4118.9,2.778]
[1759259916439,2.65317373,4119.0,4118.9,0.002]
[1759259916440,3.10757373,4119.0,4118.9,0.002]
[1759259917404,3.10857373,4119.0,4118.9,0.002]
[1759259918233,2.65417373,4119.0,4118.9,0.002]
[1759259919334,3.10857373,4119.0,4118.9,0.002]
[1759259921232,3.23017373,4119.0,4118.9,0.002]
[1759259923240,5.17577373,4119.0,4118.9,0.002]
[1759259924501,5.90508587,4119.0,4118.9,0.002]
[1759259924702,5.67968587,4119.0,4118.9,0.002]
[1759259925132,4.95037373,4119.0,4118.9,0.6033]
[1759259929132,4.95037373,4119.0,4118.9,0.461]
[1759259929511,4.95037373,4119.0,4118.9,0.002]
[1759259929950,4.95037373,4119.0,4118.9,0.461]
[1759259930476,4.82877373,4119.0,4118.9,0.002]
[1759259930762,5.50837373,4119.0,4118.9,2.778]
[1759259931265,5.07257373,4119.0,4118.9,2.778]
[1759259932039,5.50837373,4119.0,4118.9,2.778]
[1759259932438,5.07257373,4119.0,4118.9,2.778]
[1759259934746,4.82877373,4119.0,4118.9,2.778]
[1759259936280,4.82877373,4119.0,4118.9,0.002]
[1759259936570,4.82877373,4119.0,4118.9,2.777]
[1759259936973,5.28777373,4119.0,4118.9,2.777]
[1759259937171,5.96737373,4119.0,4118.9,2.777]
[1759259938453,5.53157373,4119.0,4118.9,2.777]
[1759259939138,5.28777373,4119.0,4118.9,2.777]
[1759259939360,10.89460668,4119.0,4118.9,2.777]
[1759259940557,11.01620668,4119.0,4118.9,2.777]
[1759259940756,11.69580668,4119.0,4118.9,2.777]
[1759259942466,12.21976945,4119.0,4118.9,0.002]
[1759259942856,17.8266024,4119.0,4118.9,0.002]
[1759259943063,12.21976945,4119.0,4118.9,0.002]
[1759259943259,17.8266024,4119.0,4118.9,0.002]
[1759259943465,12.21976945,4119.0,4118.9,0.002]
[1759259944382,11.54016945,4119.0,4118.9,0.002]
[1759259944587,5.40937373,4119.0,4118.9,0.461]
[1759259944750,11.01620668,4119.0,4118.9,0.002]
[1759259946088,11.01620668,4119.0,4118.9,0.461]
[1759259947291,11.01620668,4119.0,4118.9,0.002]
[1759259947885,5.28777373,4119.0,4118.9,0.1443]
[1759259948089,4.95037373,4119.0,4118.9,0.461]
[1759259948255,2.5226,4119.0,4118.9,0.6033]
[1759259948588,0.001,4119.0,4118.9,3.03113267]
[1759259948791,0.001,4119.0,4118.9,1.27344145]
[1759259948974,0.001,4119.0,4118.9,0.7249]
[1759259952789,2.42877373,4119.0,4118.9,3.2261]
[1759259953886,2.42877373,4119.0,4118.9,2.776]
[1759259955088,5.05577373,4119.0,4118.9,2.776]
[1759259956462,5.50077373,4119.0,4118.9,2.776]
[1759259957496,5.50077373,4119.0,4118.9,0.002]
[1759259957702,5.50077373,4119.0,4118.9,2.471]
[1759259959089,6.23004864,4119.0,4118.9,2.471]
[1759259959866,5.78504864,4119.0,4118.9,2.471]
[1759259960068,5.78504864,4119.0,4118.9,2.776]
[1759259960674,11.16488159,4119.0,4118.9,2.776]
[1759259960881,5.55804864,4119.0,4118.9,3.2248]
[1759259961365,4.82877373,4119.0,4118.9,3.2248]
[1759259961995,4.82877373,4119.0,4118.9,2.776]
[1759259966797,4.82877373,4119.0,4118.9,3.2248]
[1759259967003,4.82877373,4119.0,4118.9,2.776]
[1759259968024,4.82877373,4119.0,4118.9,3.2248]
[1759259968229,4.82877373,4119.0,4118.9,2.776]
[1759259971117,4.82877373,4119.0,4118.9,0.002]
[1759259971417,4.82877373,4119.0,4118.9,2.776]
[1759259972525,5.53447373,4119.0,4118.9,2.776]
[1759259976626,5.07347373,4119.0,4118.9,2.776]
[1759259978018,4.82877373,4119.0,4118.9,2.776]
[1759259979252,4.82877373,4119.0,4118.9,3.2248]
[1759259980663,4.82877373,4119.0,4118.9,2.776]
[1759259983762,5.07467373,4119.0,4118.9,2.776]
[1759259984551,5.80391319,4119.0,4118.9,2.776]
[1759259986289,5.80391319,4119.0,4118.9,2.775]
[1759259989532,5.55801319,4119.0,4118.9,2.775]
[1759259990345,5.55801319,4119.0,4118.9,3.2077]
[1759259990535,5.55801319,4119.0,4118.9,2.775]
[1759259991342,5.55801319,4119.0,4118.9,3.2077]
[1759259991769,5.55801319,4119.0,4118.9,2.775]
[1759259992268,5.80391319,4119.0,4118.9,2.775]
[1759259994271,5.55801319,4119.0,4118.9,2.775]
[1759259994473,2.401,4119.0,4118.9,3.6277]
[1759259995370,0.001,4119.0,4118.9,3.6277]
[1759259995572,0.001,4119.0,4118.9,3.7493]
[1759259996341,0.001,4119.0,4118.9,6.05553267]
[1759259996747,0.001,4119.0,4118.9,3.6277]
[1759259996947,0.001,4119.0,4118.9,3.65197832]
[1759259997680,0.001,4119.0,4118.9,6.05553267]
[1759260006604,0.001,4119.0,4118.9,6.17713267]
[1759260007677,0.001,4119.0,4118.9,6.96913267]
[1759260007902,0.001,4119.0,4118.9,7.32029914]
[1759260008087,0.001,4119.0,4118.9,7.80581705]
[1759260008282,0.001,4119.9,4119.5,0.792]
[1759260008604,0.001,4119.9,4119.8,3.34090229]
[1759260008774,0.001,4119.9,4119.8,6.48734178]
[1759260008974,0.001,4119.9,4119.8,7.03806876]
[1759260009186,0.001,4119.9,4119.8,7.13523007]
[1759260010386,1e-08,4120.4,4119.9,5.61924337]
[1759260010592,1e-08,4120.4,4120.3,3.21900774]
[1759260010793,1e-08,4121.0,4120.9,3.21865437]
[1759260011107,1e-08,4121.8,4121.7,2.42618337]
[1759260011320,1e-08,4121.8,4121.7,6.36461167]
[1759260011607,1e-08,4121.8,4121.7,7.82213745]
[1759260012306,1e-08,4121.8,4121.7,7.47097098]
[1759260012498,1e-08,4121.8,4121.7,7.9677597]
[1759260012899,1e-08,4121.8,4121.7,7.47097098]
[1759260016594,1e-08,4121.8,4121.7,10.71154836]
[1759260017319,1e-08,4121.8,4121.7,11.0379649]
[1759260017517,0.001,4122.9,4122.4,2.42577139]
[1759260017688,0.001,4122.9,4122.4,8.85680624]
[1759260018015,0.001,4122.9,4122.4,9.786415]
[1759260018216,0.34638985,4124.6,4124.0,2.42477768]
[1759260018416,0.34638985,4124.6,4122.5,5.6434251]
[1759260018417,0.09708985,4124.6,4124.2,0.792]
[1759260018640,0.2252,4124.6,4124.3,2.79324653]
[1759260018931,0.6826,4124.5,4124.4,2.769]
[1759260019516,3.1071363,4124.5,4124.4,2.769]
[1759260020527,2.6497363,4124.5,4124.4,2.8906]
[1759260020691,3.1071363,4124.5,4124.4,2.8906]
[1759260022532,0.6826,4124.5,4124.4,2.8906]
[1759260022830,3.1071363,4124.5,4124.4,2.8906]
[1759260023691,3.1071363,4124.5,4124.4,2.8896]
[1759260026023,0.6826,4124.5,4124.4,2.8896]
[1759260027129,0.2252,4124.5,4124.4,2.8896]
[1759260027437,0.2252,4124.5,4124.4,3.42103654]
[1759260028307,0.2252,4124.5,4124.4,2.8896]
[1759260031398,2.6497363,4124.5,4124.4,2.8896]
[1759260031599,0.6826,4124.5,4124.4,2.8896]
[1759260033435,3.1071363,4124.5,4124.4,2.8896]
[1759260033606,0.6826,4124.5,4124.4,2.8896]
[1759260034212,3.1071363,4124.5,4124.4,2.8896]
[1759260034608,0.6826,4124.5,4124.4,2.8896]
[1759260034809,0.2252,4124.5,4124.4,2.8896]
[1759260035303,0.6826,4124.5,4124.4,2.8896]
[1759260035903,3.1071363,4124.5,4124.4,2.8896]
[1759260036732,3.1081363,4124.5,4124.4,2.8896]
[1759260038817,3.1081363,4124.5,4124.4,2.8886]
[1759260042873,3.1081363,4124.5,4124.4,0.1216]
[1759260043072,3.1081363,4124.5,4123.3,2.42523306]
[1759260043073,2.42476899,4124.2,4124.1,0.1216]
[1759260043236,2.42476899,4124.2,4124.1,2.8886]
[1759260043552,3.13536899,4124.2,4124.1,2.8886]
[1759260046248,2.42506448,4123.7,4123.1,0.002]
[1759260046448,2.42506448,4123.7,4123.2,2.767]
[1759260046654,2.89696448,4123.7,4123.6,0.1216]
[1759260046839,2.42506448,4123.7,4123.6,2.8886]
[1759260047061,2.42496864,4123.8,4123.6,2.8886]
[1759260047261,0.7106,4123.8,4123.6,2.8886]
[1759260047444,0.2387,4123.8,4123.6,2.8886]
[1759260047772,2.42486464,4124.0,4123.6,2.8886]
[1759260047977,2.4,4124.6,4123.7,0.59875006]
[1759260048146,2.42451654,4124.6,4123.9,0.1216]
[1759260048476,2.42450858,4124.6,4124.3,0.1216]
[1759260048781,2.42450858,4124.6,4124.4,2.79124595]
[1759260048976,2.4255363,4124.5,4124.4,2.767]
[1759260049537,2.6642363,4124.5,4124.4,2.767]
[1759260051480,2.6642363,4124.5,4123.9,0.1423]
[1759260051481,2.42465388,4124.3,4123.9,0.1216]
[1759260051785,0.8332,4124.5,4123.9,0.1216]
[1759260051786,2.42477146,4124.1,4124.0,2.766]
[1759260051961,2.42460817,4124.4,4124.0,2.766]
[1759260052272,0.3613,4124.5,4124.0,2.766]
[1759260052273,2.66337464,4124.3,4124.0,2.766]
[1759260052471,0.2387,4124.3,4124.0,2.766]
[1759260052973,2.42471685,4124.2,4124.0,2.766]
[1759260053275,0.001,4124.5,4124.0,2.766]
[1759260053577,2.42466792,4124.3,4124.0,2.766]
[1759260053773,0.2397,4124.5,4124.0,2.766]
[1759260053941,0.001,4124.5,4124.0,2.766]
[1759260054138,0.2387,4124.4,4124.0,2.766]
[1759260054462,2.42554952,4124.5,4124.0,2.766]
[1759260054463,0.001,4124.5,4124.4,0.1216]
[1759260054643,0.001,4124.5,4124.4,2.8876]
[1759260054848,0.2397,4124.5,4124.4,2.8876]
[1759260056145,0.001,4124.5,4124.4,2.8876]
[1759260058644,0.001,4124.5,4124.4,3.3198]
[1759260058993,0.001,4124.5,4124.4,3.66601]
[1759260060356,0.001,4124.5,4124.4,3.69025595]
[1759260060558,0.001,4124.5,4124.4,6.11485104]
[1759260060770,0.001,4124.5,4124.4,6.23290509]
[1759260060979,0.001,4124.5,4124.4,3.80831]
[1759260061280,0.001,4124.5,4124.4,6.23290509]
[1759260061593,0.001,4124.5,4124.4,7.02490509]
[1759260063669,0.001,4124.5,4124.4,7.37607156]
[1759260065579,0.001,4124.5,4124.4,7.02490509]
[1759260066187,0.001,4124.5,4124.4,4.13730509]
[1759260066388,0.001,4124.5,4124.4,9.42530509]
[1759260066890,0.001,4124.5,4124.4,4.13730509]
[1759260067187,0.001,4124.5,4124.4,9.42530509]
[1759260067402,0.001,4124.5,4124.4,6.32880509]
[1759260067693,0.001,4124.5,4124.4,6.76100509]
[1759260067895,0.001,4124.5,4124.4,6.90330509]
[1759260068269,0.001,4124.5,4124.4,6.32880509]
[1759260068456,0.001,4124.5,4124.4,6.90330509]
[1759260069162,0.001,4124.5,4124.4,6.32880509]
[1759260070996,0.6764,4124.5,4124.4,0.34621]
[1759260071195,0.2438,4124.5,4124.4,2.766]
[1759260071401,0.2438,4124.5,4124.4,5.19059509]
[1759260071580,0.2438,4124.5,4124.4,2.766]
[1759260072188,0.001,4124.5,4124.4,2.766]
[1759260072875,0.2438,4124.5,4124.4,2.766]
[1759260073074,0.2438,4124.5,4124.4,3.28507677]
[1759260073973,0.001,4124.5,4124.4,3.28507677]
[1759260075688,0.001,4124.5,4124.4,5.70967186]
[1759260075887,0.001,4124.5,4124.4,3.28507677]
[1759260076211,0.001,4124.5,4124.4,3.40667677]
[1759260076611,0.001,4124.5,4124.4,5.83127186]
[1759260077709,0.001,4124.5,4124.4,7.22877186]
[1759260079179,0.001,4124.5,4124.4,7.08647186]
[1759260081602,0.001,4124.5,4124.4,7.22877186]
[1759260081801,0.001,4124.5,4124.4,9.62877186]
[1759260082005,0.001,4124.5,4124.4,9.50717186]
[1759260083642,0.001,4124.5,4124.4,9.83419403]
[1759260086037,0.001,4124.5,4124.4,11.88587186]
[1759260087222,0.2495,4124.5,4124.4,2.94367186]
[1759260087432,0.001,4124.5,4124.4,5.70867186]
[1759260088308,0.001,4124.5,4124.4,6.50067186]
[1759260091651,0.001,4124.5,4124.4,6.96387186]
[1759260091806,0.001,4124.5,4124.4,3.73567186]
[1759260092000,0.001,4124.5,4124.4,9.74877186]
[1759260092238,0.001,4124.5,4124.4,10.07579403]
[1759260092924,0.001,4124.5,4124.4,12.47579403]
[1759260098315,0.001,4124.5,4124.4,7.18979403]
[1759260098542,0.001,4124.5,4124.4,12.00647186]
[1759260098845,0.001,4124.5,4124.4,6.25727186]
[1759260099045,0.001,4124.5,4124.4,12.00647186]
[1759260099227,0.001,4124.5,4124.4,12.14877186]
[1759260099741,0.001,4124.5,4124.4,12.02717186]
[1759260099948,0.001,4124.5,4124.4,12.14877186]
[1759260100131,0.001,4124.5,4124.4,12.47579403]
[1759260101552,0.001,4124.5,4124.4,12.33349403]
[1759260101728,0.001,4124.5,4124.4,12.47579403]
[1759260105953,0.001,4124.5,4124.4,12.33349403]
[1759260106479,0.001,4124.5,4124.4,12.47579403]
[1759260107931,0.001,4124.5,4124.4,12.33349403]
[1759260108157,0.001,4124.5,4124.4,11.87029403]
[1759260110362,0.001,4124.5,4124.4,12.30739403]
[1759260111671,0.001,4124.5,4124.4,12.44969403]
[1759260112391,0.001,4124.5,4124.4,12.30739403]
[1759260112552,0.001,4124.5,4124.4,11.87029403]
[1759260114246,0.2294,4124.5,4124.4,11.54227186]
[1759260114450,0.001,4124.5,4124.4,11.54227186]
[1759260115261,0.001,4124.5,4124.4,11.86929403]
[1759260116578,0.001,4124.5,4124.4,12.30639403]
[1759260117565,0.001,4124.5,4124.4,12.44869403]
[1759260117967,0.001,4125.0,4124.9,3.21630119]
[1759260118295,0.001,4125.0,4124.9,9.53563409]
[1759260118510,0.001,4125.0,4124.9,9.63299108]
[1759260119313,0.2294,4125.0,4124.9,9.63299108]
[1759260119468,0.2294,4125.0,4124.9,9.30596891]
[1759260120181,0.001,4125.0,4124.9,9.30596891]
[1759260120593,0.001,4125.0,4124.9,9.63299108]
[1759260120791,0.001,4125.0,4124.9,10.21239108]
[1759260121407,0.001,4125.0,4124.9,10.07009108]
[1759260121775,0.001,4125.0,4124.9,9.63299108]
[1759260121989,0.001,4125.0,4124.9,6.54196891]
[1759260122221,0.001,4125.0,4124.9,11.82696891]
[1759260122528,0.001,4125.0,4124.9,12.15399108]
[1759260125179,0.001,4125.0,4124.9,12.59109108]
[1759260126417,0.001,4125.0,4124.9,12.15399108]
[1759260126823,0.001,4125.0,4124.9,12.59109108]
[1759260128095,0.001,4125.0,4124.9,12.15399108]
[1759260128326,0.4455,4125.6,4125.5,3.21594861]
[1759260128526,2.41,4126.9,4126.7,2.42319443]
[1759260128527,0.01,4126.9,4126.7,2.42319443]
[1759260128694,0.01,4126.9,4126.8,2.78823185]
[1759260128894,0.01,4126.9,4126.8,2.90903185]
[1759260129623,0.4555,4126.9,4126.8,2.90903185]
[1759260129792,0.4555,4126.9,4126.8,2.8848]
[1759260130322,0.6839,4126.9,4126.8,2.8848]
[1759260130521,0.6839,4126.9,4126.8,5.33221688]
[1759260130721,0.6839,4126.9,4126.8,2.8848]
[1759260130924,0.6839,4126.9,4126.8,6.12421688]
[1759260131223,0.6839,4126.9,4126.8,6.76735283]
[1759260134025,0.6839,4126.9,4126.8,4.3441678]
[1759260134226,0.6839,4126.9,4126.8,2.8848]
[1759260134389,0.6839,4126.9,4126.8,5.18718503]
[1759260135432,0.6839,4126.9,4126.8,5.97918503]
[1759260135740,0.6838,4126.9,4126.8,5.97918503]
[1759260136101,0.2384,4126.9,4126.8,5.97918503]
[1759260136306,0.01,4126.9,4126.8,6.86754906]
[1759260136490,0.2499,4126.9,4126.8,6.86754906]
[1759260136694,0.01,4126.9,4126.8,6.86754906]
[1759260137826,5.0,4127.0,4126.9,3.21512631]
[1759260137827,1e-08,4127.0,4126.9,3.21512631]
[1759260138126,1e-08,4127.0,4126.9,6.65013521]
[1759260138299,1e-08,4127.0,4126.9,8.1889179]
[1759260139527,1e-08,4127.0,4126.9,7.84654026]
[1759260139730,1e-08,4127.0,4126.9,7.17814026]
[1759260140027,0.23830001,4127.0,4126.9,12.46214026]
[1759260140231,1e-08,4127.0,4126.9,9.69814026]
[1759260140451,1e-08,4127.0,4126.9,12.46214026]
[1759260141913,0.23830001,4127.0,4126.9,12.46114026]
[1759260142156,1e-08,4127.0,4126.9,12.90354026]
[1759260142452,1e-08,4127.0,4126.9,12.46114026]
[1759260143039,1e-08,4127.0,4126.9,12.46614026]
[1759260143040,0.23830001,4127.0,4126.9,12.46614026]
[1759260143239,0.68800001,4127.0,4126.9,12.46614026]
[1759260144522,0.23830001,4127.0,4126.9,12.46614026]
[1759260144728,0.23830001,4127.0,4126.9,12.58694026]
[1759260145558,1e-08,4127.0,4126.9,12.58694026]
[1759260145758,1e-08,4127.0,4126.9,7.29894026]
[1759260145920,1e-08,4127.0,4126.9,12.58794026]
[1759260147750,1e-08,4127.0,4126.9,13.4779179]
[1759260147917,1e-08,4127.0,4126.9,13.5987179]
[1759260148118,1e-08,4127.0,4126.9,10.1613179]
[1759260148331,1e-08,4127.0,4126.9,13.6027179]
[1759260150213,1e-08,4127.0,4126.9,13.3767179]
[1759260150451,1e-08,4127.0,4126.9,12.59194026]
[1759260150747,0.23830001,4127.0,4126.9,12.59194026]
[1759260151217,0.68800001,4127.0,4126.9,12.59194026]
[1759260151739,0.68800001,4127.0,4126.9,1.68381395]
[1759260152035,0.68800001,4127.0,4126.9,3.6858]
[1759260152441,0.68800001,4127.0,4126.9,6.10892631]
[1759260153441,0.68800001,4127.0,4126.9,3.6858]
[1759260153655,0.68800001,4127.0,4126.9,6.10892631]
[1759260154855,0.68800001,4127.0,4126.9,3.6858]
[1759260155039,0.68800001,4127.0,4126.9,6.10892631]
[1759260155242,0.23830001,4127.0,4126.9,6.10892631]
[1759260155465,1e-08,4127.0,4126.9,6.48507115]
[1759260156655,0.23830001,4127.0,4126.9,6.48507115]
[1759260157452,1e-08,4127.0,4126.9,0.9128]
[1759260157660,0.68800001,4127.0,4126.9,6.10792631]
[1759260157991,0.68800001,4127.0,4126.9,3.6848]
[1759260158139,0.68800001,4127.0,4126.9,6.10792631]
[1759260158539,0.68800001,4127.0,4126.9,3.6858]
[1759260158540,0.68900001,4127.0,4126.9,3.6858]
[1759260160653,0.00100001,4127.0,4126.9,3.6858]
[1759260160960,0.69570001,4127.0,4126.9,3.6848]
[1759260164877,0.69570001,4127.0,4126.9,6.10792631]
[1759260165392,0.69570001,4127.0,4126.9,3.6848]
[1759260165691,0.23930001,4127.0,4126.9,6.10792631]
[1759260166266,0.00100001,4127.0,4126.9,6.10792631]
[1759260166562,0.00100001,4127.0,4126.9,7.08163097]
[1759260167173,0.00100001,4127.0,4126.9,6.10792631]
[1759260168095,0.00100001,4127.0,4126.9,6.82062631]
[1759260169692,0.00100001,4127.0,4126.9,7.17734561]
[1759260175382,0.00100001,4127.0,4126.9,8.62492631]
[1759260175587,0.24990001,4127.0,4126.9,8.62492631]
[1759260175787,0.00100001,4127.0,4126.9,9.77906097]
[1759260175975,0.24990001,4127.0,4126.9,9.77906097]
[1759260176175,0.00100001,4127.0,4126.9,4.49006097]
[1759260176487,0.00100001,4127.0,4126.9,9.78006097]
[1759260176712,0.24990001,4127.0,4126.9,9.78006097]
[1759260177210,0.00100001,4127.0,4126.9,9.78006097]
[1759260179908,0.24990001,4127.0,4126.9,9.78006097]
[1759260180211,0.00100001,4127.0,4126.9,9.78006097]
[1759260183499,0.24990001,4127.0,4126.9,9.78006097]
[1759260184034,0.00100001,4127.0,4126.9,9.78006097]
[1759260185521,0.00100001,4127.0,4126.9,10.49276097]
[1759260185703,0.00100001,4127.0,4126.9,9.78006097]
[1759260187611,0.00100001,4127.0,4126.9,10.49276097]
[1759260188126,0.00100001,4127.0,4126.9,10.72868027]
[1759260188322,0.00100001,4127.0,4126.9,10.84948027]
[1759260189495,0.00100001,4127.0,4126.9,4.49006097]
[1759260189829,0.00100001,4127.0,4126.9,9.77606097]
[1759260190895,0.24220001,4127.0,4126.9,9.77606097]
[1759260191294,0.00100001,4127.0,4126.9,9.77606097]
[1759260191829,0.24220001,4127.0,4126.9,3.33592631]
[1759260192011,0.68280001,4127.0,4126.9,6.10092631]
[1759260192216,0.00100001,4127.0,4126.9,6.10092631]
[1759260192720,0.24220001,4127.0,4126.9,6.10092631]
[1759260193245,0.00100001,4127.0,4126.9,6.10092631]
[1759260193416,0.24220001,4127.0,4126.9,6.10092631]
[1759260193616,0.68280001,4127.0,4126.9,6.10092631]
[1759260194723,0.24220001,4127.0,4126.9,6.10092631]
[1759260195046,0.68280001,4127.0,4126.9,6.10092631]
[1759260195248,0.68280001,4127.0,4126.9,0.1208]
[1759260195551,0.68280001,4127.0,4126.9,2.8848]
[1759260196341,0.68280001,4127.0,4126.9,0.1208]
[1759260196547,0.68280001,4127.0,4126.9,2.8858]
[1759260197111,0.24220001,4127.0,4126.9,2.8858]
[1759260197433,0.68280001,4127.0,4126.9,2.8858]
[1759260206668,8.68457432,4127.0,4126.9,0.1208]
[1759260206864,8.68457432,4127.0,4126.9,2.8848]
[1759260207222,3.10587909,4127.0,4126.9,2.765]
[1759260209126,2.42312631,4126.9,4126.8,0.002]
[1759260209329,2.42312631,4126.9,4126.8,0.304]
[1759260209534,3.13412631,4126.9,4126.8,0.304]
[1759260210028,3.43812631,4126.9,4126.8,0.304]
[1759260212229,3.43812631,4126.9,4126.8,2.77]
[1759260216473,9.89974982,4126.9,4126.8,2.77]
[1759260217459,2.72712631,4126.9,4126.8,2.769]
[1759260217759,3.43812631,4126.9,4126.8,2.769]
[1759260218352,3.43812631,4126.9,4126.8,0.002]
[1759260218552,3.43812631,4126.9,4126.8,2.768]
[1759260218939,5.83812631,4126.9,4126.8,2.768]
[1759260219144,5.95892631,4126.9,4126.8,0.002]
[1759260219348,5.95892631,4126.9,4126.8,2.768]
[1759260222637,5.24792631,4126.9,4126.8,2.768]
[1759260223244,5.49442631,4126.9,4126.8,2.768]
[1759260223465,5.24792631,4126.9,4126.8,2.768]
[1759260223837,5.49442631,4126.9,4126.8,2.768]
[1759260224371,5.24792631,4126.9,4126.8,2.768]
[1759260227982,5.49442631,4126.9,4126.8,2.768]
[1759260228680,5.24792631,4126.9,4126.8,2.768]
[1759260232187,5.49442631,4126.9,4126.8,2.768]
[1759260232492,5.95022631,4126.9,4126.8,2.768]
[1759260235173,5.49442631,4126.9,4126.8,2.768]
[1759260235369,5.24792631,4126.9,4126.8,2.768]
[1759260237783,5.49442631,4126.9,4126.8,2.768]
[1759260238710,5.24792631,4126.9,4126.8,2.768]
[1759260240114,2.4,4126.9,4126.8,2.8888]
[1759260240276,0.00100001,4127.0,4126.9,3.21512631]
[1759260240476,0.00100001,4127.0,4126.9,4.29207687]
[1759260240679,0.00100001,4127.0,4126.9,5.2161718]
[1759260242320,0.00100001,4127.0,4126.9,4.8594525]
[1759260245543,0.00100001,4127.0,4126.9,3.3714525]
[1759260245718,0.00100001,4127.0,4126.9,6.8324525]
[1759260246218,0.00100001,4127.0,4126.9,7.6244525]
[1759260250313,0.00100001,4127.0,4126.9,7.7452525]
[1759260254445,0.001,4127.4,4127.1,0.792]
[1759260254615,0.001,4127.4,4127.2,3.37611262]
[1759260254817,0.2483,4127.4,4127.3,2.54369147]
[1759260255015,0.001,4127.4,4127.3,2.54369147]
[1759260255527,0.001,4127.4,4127.3,3.25459147]
[1759260256742,0.001,4127.4,4127.3,2.54369147]
[1759260256950,0.001,4127.4,4127.3,3.53707261]
[1759260259536,0.001,4127.4,4127.3,4.22427261]
[1759260260655,0.001,4127.4,4127.3,5.04050152]
[1759260260857,0.001,4127.4,4127.3,5.01627261]
[1759260261235,0.001,4127.4,4127.3,5.37299191]
[1759260261566,0.001,4127.4,4127.3,5.01627261]
[1759260262148,0.001,4127.4,4127.3,7.78027261]
[1759260262949,0.001,4127.4,4127.3,7.09307261]
[1759260263146,0.6872,4127.4,4127.3,0.9128]
[1759260263473,0.001,4127.4,4127.3,5.30769147]
[1759260265678,0.001,4127.4,4127.3,6.09969147]
[1759260266376,0.001,4127.4,4127.3,3.33569147]
[1759260266543,0.001,4127.4,4127.3,6.81112038]
[1759260266747,0.001,4127.4,4127.3,8.04220177]
[1759260269860,0.08798909,4128.3,4128.0,0.79499999]
[1759260270055,0.08798909,4128.3,4128.1,2.764]
[1759260270379,0.4462,4128.2,4128.1,2.764]
[1759260271661,0.6862,4128.2,4128.1,2.764]
[1759260272269,0.08798909,4128.3,4128.1,2.764]
[1759260272468,0.6862,4128.2,4128.1,2.764]
[1759260272976,3.10856325,4128.2,4128.1,2.764]
[1759260273380,3.83603437,4128.2,4128.1,2.764]
[1759260275703,1.41367112,4128.2,4128.1,2.764]
[1759260275891,3.83603437,4128.2,4128.1,2.764]
[1759260280003,3.83703437,4128.2,4128.1,2.764]
[1759260281103,1.41467112,4128.2,4128.1,2.764]
[1759260281499,3.83703437,4128.2,4128.1,2.764]
[1759260282001,1.41467112,4128.2,4128.0,0.91579999]
[1759260282185,3.15083437,4128.2,4128.1,2.764]
[1759260283003,3.62423437,4128.2,4128.1,2.764]
[1759260283305,2.82923438,4128.2,4128.1,2.764]
[1759260286674,3.05473438,4128.2,4128.1,2.764]
[1759260287340,2.42242193,4128.1,4128.0,0.1208]
[1759260287516,2.42242193,4128.1,4128.0,2.8848]
[1759260287822,3.12132193,4128.1,4128.0,2.8848]
[1759260288930,3.12132193,4128.1,4128.0,2.764]
[1759260289697,2.42248062,4128.0,4127.0,0.002]
[1759260289905,3.0989,4128.1,4127.3,0.1208]
[1759260289906,8.00186909,4127.5,4127.3,0.1208]
[1759260290128,8.00186909,4127.5,4127.4,2.763]
[1759260290430,8.70076909,4127.5,4127.4,2.763]
[1759260291002,2.42283277,4127.4,4127.3,0.1208]
[1759260291209,3.12173277,4127.4,4127.3,2.8838]
[1759260291592,3.12173277,4127.4,4127.3,0.1208]
[1759260291797,2.42300889,4127.1,4127.0,0.002]
[1759260292102,2.42300889,4127.1,4127.0,2.766]
[1759260292613,2.89640889,4127.1,4127.0,2.766]
[1759260293096,3.12190889,4127.1,4127.0,2.766]
[1759260294194,2.42300889,4127.1,4127.0,2.766]
[1759260294427,8.70099619,4127.1,4127.0,2.766]
[1759260296450,8.70099619,4127.1,4127.0,0.002]
[1759260296652,8.82179619,4127.1,4127.0,2.766]
[1759260297253,11.22179619,4127.1,4127.0,2.766]
[1759260297422,4.94380889,4127.1,4127.0,2.766]
[1759260297621,11.22179619,4127.1,4127.0,2.766]
[1759260300453,11.22179619,4127.1,4127.0,0.002]
[1759260300659,11.22179619,4127.1,4127.0,2.766]
[1759260301423,2.42330247,4126.6,4126.5,0.002]